Workbook

Sheet Painel
C3: Simulador de Faturas
B5: 1 - Digite o volume total consumido (m³)
B7: 2 - Clique no serviço oferecido
B9: 3 - Digite o número de economias* | E9: Categorias | G9: Número de economias | H9: Valor Água | J9: Valor Esgoto | L9: Valor Total
B10: relativas a cada categoria | E10: Residencial Social | H10: =Painel!D31 -> 0 | J10: =SUM(Painel!E31:F31) -> 0 | L10: =SUM(H10:K10) -> 0
E11: Residencial | H11: =Painel!D32 -> 0 | J11: =SUM(Painel!E32:F32) -> 0 | L11: 0
E12: Comercial | H12: =Painel!D33 -> 0 | J12: =SUM(Painel!E33:F33) -> 0 | L12: 0
E13: Industrial | H13: =Painel!D34 -> 0 | J13: =SUM(Painel!E34:F34) -> 0 | L13: 0
E14: Pública | H14: =Painel!D35 -> 0 | J14: =SUM(Painel!E35:F35) -> 0 | L14: 0
E15: Valor Total | G15: =SUM(G10:G14) -> 0 | H15: =SUM(H10:I14) -> 0 | J15: =SUM(J10:K14) -> 0 | L15: 0
C17: * Economia faz referência ao número de unidades familiares, comerciais ou produtivas que existem para um mesmo hidrômetro/ligação. Existindo em um mesma construção, com hidrômetro único, três famílias e duas lojas, têm-se 3 economias residenciais e 2 economias comerciais para 1 ligação
C23: Agência Reguladora de Serviços de Abastecimento de Água e Esgotamento Sanitário do Estado de MG - ARSAE
B27: Serviços | C27: Volume/Economias
B28: Só água | C28: =IFERROR(Painel!E5/Painel!G15,0) -> 0
B29: Sem multiplicar pelas economias
B30: Categoria | C30: N° economias | D30: Valor Água | E30: Valor ED | F30: Valor EE
B31: =Painel!E10 -> Residencial Social | C31: =Painel!G10 -> 0 | D31: =IF($C31>0,IF(OR($B$28="Só água",$B$28="Água e Esgoto",$B$28="Água e Esgoto Estático"),IF($C$28<=$N48,J48,IF(AND($C$28>$M49,$C$28<=$N49),J49,IF(AND($C$28>$M50,$C$28<=$N50),J50,IF(AND($C$28>$M51,$C$28<=$N51),J51,IF(AND($C$28>$M52,$C$28<=$N52),J52,IF(AND($C$28>$M53,$C$28<=$N53),J53,IF($C$28>$M54,J54,"Erro"))))))),0),0) -> 0 | E31: =IF($C31>0,IF(OR($B$28="Água e Esgoto",$B$28="Esgoto"),IF($C$28<=$N48,K48,IF(AND($C$28>$M49,$C$28<=$N49),K49,IF(AND($C$28>$M50,$C$28<=$N50),K50,IF(AND($C$28>$M51,$C$28<=$N51),K51,IF(AND($C$28>$M52,$C$28<=$N52),K52,IF(AND($C$28>$M53,$C$28<=$N53),K53,IF($C$28>$M54,K54,"Erro"))))))),0),0) -> 0 | F31: =IF($C31>0,IF(OR($B$28="Esgoto Estático",$B$28="Água e Esgoto Estático"),IF($C$28<=$N48,L48,IF(AND($C$28>$M49,$C$28<=$N49),L49,IF(AND($C$28>$M50,$C$28<=$N50),L50,IF(AND($C$28>$M51,$C$28<=$N51),L51,IF(AND($C$28>$M52,$C$28<=$N52),L52,IF(AND($C$28>$M53,$C$28<=$N53),L53,IF($C$28>$M54,L54,"Erro"))))))),0),0) -> 0
B32: =Painel!E11 -> Residencial | C32: =Painel!G11 -> 0 | D32: =IF($C32>0,IF(OR($B$28="Só água",$B$28="Água e Esgoto",$B$28="Água e Esgoto Estático"),IF($C$28<=$N56,J56,IF(AND($C$28>$M57,$C$28<=$N57),J57,IF(AND($C$28>$M58,$C$28<=$N58),J58,IF(AND($C$28>$M59,$C$28<=$N59),J59,IF(AND($C$28>$M60,$C$28<=$N60),J60,IF(AND($C$28>$M61,$C$28<=$N61),J61,IF($C$28>$M62,J62,"Erro"))))))),0),0) -> 0 | E32: =IF($C32>0,IF(OR($B$28="Água e Esgoto",$B$28="Esgoto"),IF($C$28<=$N56,K56,IF(AND($C$28>$M57,$C$28<=$N57),K57,IF(AND($C$28>$M58,$C$28<=$N58),K58,IF(AND($C$28>$M59,$C$28<=$N59),K59,IF(AND($C$28>$M60,$C$28<=$N60),K60,IF(AND($C$28>$M61,$C$28<=$N61),K61,IF($C$28>$M62,K62,"Erro"))))))),0),0) -> 0 | F32: =IF($C32>0,IF(OR($B$28="Esgoto Estático",$B$28="Água e Esgoto Estático"),IF($C$28<=$N56,L56,IF(AND($C$28>$M57,$C$28<=$N57),L57,IF(AND($C$28>$M58,$C$28<=$N58),L58,IF(AND($C$28>$M59,$C$28<=$N59),L59,IF(AND($C$28>$M60,$C$28<=$N60),L60,IF(AND($C$28>$M61,$C$28<=$N61),L61,IF($C$28>$M62,L62,"Erro"))))))),0),0) -> 0
B33: =Painel!E12 -> Comercial | C33: =Painel!G12 -> 0 | D33: =IF($C33>0,IF(OR($B$28="Só água",$B$28="Água e Esgoto",$B$28="Água e Esgoto Estático"),IF($C$28<=$N64,J64,IF(AND($C$28>$M65,$C$28<=$N65),J65,IF(AND($C$28>$M66,$C$28<=$N66),J66,IF(AND($C$28>$M67,$C$28<=$N67),J67,IF(AND($C$28>$M68,$C$28<=$N68),J68,IF(AND($C$28>$M69,$C$28<=$N69),J69,IF($C$28>$M70,J70,"Erro"))))))),0),0) -> 0 | E33: =IF($C33>0,IF(OR($B$28="Água e Esgoto",$B$28="Esgoto"),IF($C$28<=$N64,K64,IF(AND($C$28>$M65,$C$28<=$N65),K65,IF(AND($C$28>$M66,$C$28<=$N66),K66,IF(AND($C$28>$M67,$C$28<=$N67),K67,IF(AND($C$28>$M68,$C$28<=$N68),K68,IF(AND($C$28>$M69,$C$28<=$N69),K69,IF($C$28>$M70,K70,"Erro"))))))),0),0) -> 0 | F33: =IF($C33>0,IF(OR($B$28="Esgoto Estático",$B$28="Água e Esgoto Estático"),IF($C$28<=$N64,L64,IF(AND($C$28>$M65,$C$28<=$N65),L65,IF(AND($C$28>$M66,$C$28<=$N66),L66,IF(AND($C$28>$M67,$C$28<=$N67),L67,IF(AND($C$28>$M68,$C$28<=$N68),L68,IF(AND($C$28>$M69,$C$28<=$N69),L69,IF($C$28>$M70,L70,"Erro"))))))),0),0) -> 0
B34: =Painel!E13 -> Industrial | C34: =Painel!G13 -> 0 | D34: =IF($C34>0,IF(OR($B$28="Só água",$B$28="Água e Esgoto",$B$28="Água e Esgoto Estático"),IF($C$28<=$N72,J72,IF(AND($C$28>$M73,$C$28<=$N73),J73,IF(AND($C$28>$M74,$C$28<=$N74),J74,IF(AND($C$28>$M75,$C$28<=$N75),J75,IF(AND($C$28>$M76,$C$28<=$N76),J76,IF(AND($C$28>$M77,$C$28<=$N77),J77,IF($C$28>$M78,J78,"Erro"))))))),0),0) -> 0 | E34: =IF($C34>0,IF(OR($B$28="Água e Esgoto",$B$28="Esgoto"),IF($C$28<=$N72,K72,IF(AND($C$28>$M73,$C$28<=$N73),K73,IF(AND($C$28>$M74,$C$28<=$N74),K74,IF(AND($C$28>$M75,$C$28<=$N75),K75,IF(AND($C$28>$M76,$C$28<=$N76),K76,IF(AND($C$28>$M77,$C$28<=$N77),K77,IF($C$28>$M78,K78,"Erro"))))))),0),0) -> 0 | F34: =IF($C34>0,IF(OR($B$28="Esgoto Estático",$B$28="Água e Esgoto Estático"),IF($C$28<=$N72,L72,IF(AND($C$28>$M73,$C$28<=$N73),L73,IF(AND($C$28>$M74,$C$28<=$N74),L74,IF(AND($C$28>$M75,$C$28<=$N75),L75,IF(AND($C$28>$M76,$C$28<=$N76),L76,IF(AND($C$28>$M77,$C$28<=$N77),L77,IF($C$28>$M78,L78,"Erro"))))))),0),0) -> 0
B35: =Painel!E14 -> Pública | C35: =Painel!G14 -> 0 | D35: =IF($C35>0,IF(OR($B$28="Só água",$B$28="Água e Esgoto",$B$28="Água e Esgoto Estático"),IF($C$28<=$N80,J80,IF(AND($C$28>$M81,$C$28<=$N81),J81,IF(AND($C$28>$M82,$C$28<=$N82),J82,IF(AND($C$28>$M83,$C$28<=$N83),J83,IF(AND($C$28>$M84,$C$28<=$N84),J84,IF(AND($C$28>$M85,$C$28<=$N85),J85,IF($C$28>$M86,J86,"Erro"))))))),0),0) -> 0 | E35: =IF($C35>0,IF(OR($B$28="Água e Esgoto",$B$28="Esgoto"),IF($C$28<=$N80,K80,IF(AND($C$28>$M81,$C$28<=$N81),K81,IF(AND($C$28>$M82,$C$28<=$N82),K82,IF(AND($C$28>$M83,$C$28<=$N83),K83,IF(AND($C$28>$M84,$C$28<=$N84),K84,IF(AND($C$28>$M85,$C$28<=$N85),K85,IF($C$28>$M86,K86,"Erro"))))))),0),0) -> 0 | F35: =IF($C35>0,IF(OR($B$28="Esgoto Estático",$B$28="Água e Esgoto Estático"),IF($C$28<=$N80,L80,IF(AND($C$28>$M81,$C$28<=$N81),L81,IF(AND($C$28>$M82,$C$28<=$N82),L82,IF(AND($C$28>$M83,$C$28<=$N83),L83,IF(AND($C$28>$M84,$C$28<=$N84),L84,IF(AND($C$28>$M85,$C$28<=$N85),L85,IF($C$28>$M86,L86,"Erro"))))))),0),0) -> 0
B37: Tabela Serviços
B38: Só água
B39: Água e Esgoto
B40: Esgoto
B41: Água e Esgoto Estático
B42: Esgoto Estático
A43: Intervalo | B43: Intervalo de Consumo m³ | R43: Tarifa Fixa | S43: 0 | T43: 1 | U43: - | V43: - | W43: 9.71 | X43: - | Y43: 7.18 | Z43: =W43+Y43 -> 16.89
C44: Tarifas | G44: Acumulado | J44: Cálculos | R44: 0 a 3 | S44: 3 | T44: 1 | U44: 3 | V44: =C56 -> 1.42 | W44: =V44*3 -> 4.26 | X44: =D56 -> 1.05 | Y44: =X44*3 -> 3.15 | Z44: =W44+Y44 -> 7.41
C45: Água | D45: Esgoto | G45: Água | H45: Esgoto | J45: Água | K45: Esgoto | R45: 3 a 6 | S45: 2 | T45: 1 | U45: 2 | V45: =C57 -> 1.778 | W45: =V45*2 -> 3.556 | X45: =D57 -> 1.316 | Y45: =X45*2 -> 2.632 | Z45: =W45+Y45 -> 6.188
D46: ED | E46: EE | H46: ED | I46: EE | K46: ED | L46: EE | M46: Referência Min. | N46: Referência Max.
B47: Fixa | C47: 4.36 | D47: 3.24 | E47: 1.32 | F47: R$/mês | G47: =C47 -> 4.36 | H47: =D47 -> 3.24 | I47: =E47 -> 1.32 | R47: Soma | S47: 5 | T47: 1 | U47: 5 | W47: =W43+W44+W45 -> 17.526 | Y47: =Y43+Y44+Y45 -> 12.962 | Z47: =Z43+Z44+Z45 -> 30.488
A48: =#REF!-#REF! ->  | B48: 0 a 3 m³ | C48: 0.71 | D48: 0.53 | E48: 0.21 | F48: R$/m³ | G48: =G47+(C48*$A48) ->  | H48: =H47+(D48*$A48) ->  | I48: =I47+(E48*$A48) ->  | J48: =IF($C$28<=$N48,(($C$28-$M48)*C48)+C$47,"Fora da faixa") -> 4.36 | K48: =IF($C$28<=$N48,(($C$28-$M48)*D48)+D$47,"Fora da faixa") -> 3.24 | L48: =IF($C$28<=$N48,(($C$28-$M48)*E48)+E$47,"Fora da faixa") -> 1.32 | M48: 0 | N48: 3
A49: =#REF!-#REF! ->  | B49: > 3 a 6 m³ | C49: 0.888 | D49: 0.658 | E49: 0.267 | F49: R$/m³ | G49: =G48+(C49*$A49) ->  | H49: =H48+(D49*$A49) ->  | I49: =I48+(E49*$A49) ->  | J49: =IF(AND($C$28>$M49,$C$28<=$N49),(($C$28-$M49)*C49)+G48,"Fora da faixa") -> Fora da faixa | K49: =IF(AND($C$28>$M49,$C$28<$N49),(($C$28-$M49)*D49)+H48,"Fora da faixa") -> Fora da faixa | L49: =IF(AND($C$28>$M49,$C$28<$N49),(($C$28-$M49)*E49)+I48,"Fora da faixa") -> Fora da faixa | M49: 3 | N49: 6 | R49: ABASTECIMENTO DE ÁGUA | X49: =W47 -> 17.526
A50: =#REF!-#REF! ->  | B50: > 6 a 10 m³ | C50: 1.895 | D50: 1.402 | E50: 0.569 | F50: R$/m³ | G50: =G49+(C50*$A50) ->  | H50: =H49+(D50*$A50) ->  | I50: =I49+(E50*$A50) ->  | J50: =IF(AND($C$28>$M50,$C$28<=$N50),(($C$28-$M50)*C50)+G49,"Fora da faixa") -> Fora da faixa | K50: =IF(AND($C$28>$M50,$C$28<=$N50),(($C$28-$M50)*D50)+H49,"Fora da faixa") -> Fora da faixa | L50: =IF(AND($C$28>$M50,$C$28<=$N50),(($C$28-$M50)*E50)+I49,"Fora da faixa") -> Fora da faixa | M50: 6 | N50: 10 | R50: ESGOTO DINÂMICO COM COLETA E TRATAMENTO - EDT | X50: =Y47 -> 12.962
A51: =#REF!-#REF! ->  | B51: > 10 a 15 m³ | C51: 2.938 | D51: 2.174 | E51: 0.882 | F51: R$/m³ | G51: =G50+(C51*$A51) ->  | H51: =H50+(D51*$A51) ->  | I51: =I50+(E51*$A51) ->  | J51: =IF(AND($C$28>$M51,$C$28<=$N51),(($C$28-$M51)*C51)+G50,"Fora da faixa") -> Fora da faixa | K51: =IF(AND($C$28>$M51,$C$28<=$N51),(($C$28-$M51)*D51)+H50,"Fora da faixa") -> Fora da faixa | L51: =IF(AND($C$28>$M51,$C$28<=$N51),(($C$28-$M51)*E51)+I50,"Fora da faixa") -> Fora da faixa | M51: 10 | N51: 15
A52: =#REF!-#REF! ->  | B52: > 15 a 20 m³ | C52: 4.009 | D52: 2.967 | E52: 1.203 | F52: R$/m³ | G52: =G51+(C52*$A52) ->  | H52: =H51+(D52*$A52) ->  | I52: =I51+(E52*$A52) ->  | J52: =IF(AND($C$28>$M52,$C$28<=$N52),(($C$28-$M52)*C52)+G51,"Fora da faixa") -> Fora da faixa | K52: =IF(AND($C$28>$M52,$C$28<=$N52),(($C$28-$M52)*D52)+H51,"Fora da faixa") -> Fora da faixa | L52: =IF(AND($C$28>$M52,$C$28<=$N52),(($C$28-$M52)*E52)+I51,"Fora da faixa") -> Fora da faixa | M52: 15 | N52: 20 | R52: =Z47 -> 30.488
A53: =#REF!-#REF! ->  | B53: > 20 a 40 m³ | C53: 10.201 | D53: 7.548 | E53: 3.06 | F53: R$/m³ | G53: =G52+(C53*$A53) ->  | H53: =H52+(D53*$A53) ->  | I53: =I52+(E53*$A53) ->  | J53: =IF(AND($C$28>$M53,$C$28<=$N53),(($C$28-$M53)*C53)+G52,"Fora da faixa") -> Fora da faixa | K53: =IF(AND($C$28>$M53,$C$28<=$N53),(($C$28-$M53)*D53)+H52,"Fora da faixa") -> Fora da faixa | L53: =IF(AND($C$28>$M53,$C$28<=$N53),(($C$28-$M53)*E53)+I52,"Fora da faixa") -> Fora da faixa | M53: 20 | N53: 40
B54: > 40 m³ | C54: 12.446 | D54: 9.209 | E54: 3.735 | F54: R$/m³ | J54: =IF($C$28>$M54,(($C$28-$M54)*C54)+G53,"Fora da faixa") -> Fora da faixa | K54: =IF($C$28>$M54,(($C$28-$M54)*D54)+H53,"Fora da faixa") -> Fora da faixa | L54: =IF($C$28>$M54,(($C$28-$M54)*E54)+I53,"Fora da faixa") -> Fora da faixa | M54: 40
B55: Fixa | C55: 9.71 | D55: 7.18 | E55: 2.91 | F55: R$/mês | G55: =C55 -> 9.71 | H55: =D55 -> 7.18 | I55: =E55 -> 2.91
A56: =#REF!-#REF! ->  | B56: 0 a 3 m³ | C56: 1.42 | D56: 1.05 | E56: 0.42 | F56: R$/m³ | G56: =G55+(C56*$A56) ->  | H56: =H55+(D56*$A56) ->  | I56: =I55+(E56*$A56) ->  | J56: =IF($C$28<=$N56,(($C$28-$M56)*C56)+C$55,"Fora da faixa") -> 9.71 | K56: =IF($C$28<=$N56,(($C$28-$M56)*D56)+D$55,"Fora da faixa") -> 7.18 | L56: =IF($C$28<=$N56,(($C$28-$M56)*E56)+E$55,"Fora da faixa") -> 2.91 | M56: 0 | N56: 3
A57: =#REF!-#REF! ->  | B57: > 3 a 6 m³ | C57: 1.778 | D57: 1.316 | E57: 0.533 | F57: R$/m³ | G57: =G56+(C57*$A57) ->  | H57: =H56+(D57*$A57) ->  | I57: =I56+(E57*$A57) ->  | J57: =IF(AND($C$28>$M57,$C$28<=$N57),(($C$28-$M57)*C57)+G56,"Fora da faixa") -> Fora da faixa | K57: =IF(AND($C$28>$M57,$C$28<=$N57),(($C$28-$M57)*D57)+H56,"Fora da faixa") -> Fora da faixa | L57: =IF(AND($C$28>$M57,$C$28<=$N57),(($C$28-$M57)*E57)+I56,"Fora da faixa") -> Fora da faixa | M57: 3 | N57: 6
A58: =#REF!-#REF! ->  | B58: > 6 a 10 m³ | C58: 3.791 | D58: 2.806 | E58: 1.137 | F58: R$/m³ | G58: =G57+(C58*$A58) ->  | H58: =H57+(D58*$A58) ->  | I58: =I57+(E58*$A58) ->  | J58: =IF(AND($C$28>$M58,$C$28<=$N58),(($C$28-$M58)*C58)+G57,"Fora da faixa") -> Fora da faixa | K58: =IF(AND($C$28>$M58,$C$28<=$N58),(($C$28-$M58)*D58)+H57,"Fora da faixa") -> Fora da faixa | L58: =IF(AND($C$28>$M58,$C$28<=$N58),(($C$28-$M58)*E58)+I57,"Fora da faixa") -> Fora da faixa | M58: 6 | N58: 10
A59: =#REF!-#REF! ->  | B59: > 10 a 15 m³ | C59: 5.875 | D59: 4.348 | E59: 1.763 | F59: R$/m³ | G59: =G58+(C59*$A59) ->  | H59: =H58+(D59*$A59) ->  | I59: =I58+(E59*$A59) ->  | J59: =IF(AND($C$28>$M59,$C$28<=$N59),(($C$28-$M59)*C59)+G58,"Fora da faixa") -> Fora da faixa | K59: =IF(AND($C$28>$M59,$C$28<=$N59),(($C$28-$M59)*D59)+H58,"Fora da faixa") -> Fora da faixa | L59: =IF(AND($C$28>$M59,$C$28<=$N59),(($C$28-$M59)*E59)+I58,"Fora da faixa") -> Fora da faixa | M59: 10 | N59: 15
A60: =#REF!-#REF! ->  | B60: > 15 a 20 m³ | C60: 8.02 | D60: 5.934 | E60: 2.406 | F60: R$/m³ | G60: =G59+(C60*$A60) ->  | H60: =H59+(D60*$A60) ->  | I60: =I59+(E60*$A60) ->  | J60: =IF(AND($C$28>$M60,$C$28<=$N60),(($C$28-$M60)*C60)+G59,"Fora da faixa") -> Fora da faixa | K60: =IF(AND($C$28>$M60,$C$28<=$N60),(($C$28-$M60)*D60)+H59,"Fora da faixa") -> Fora da faixa | L60: =IF(AND($C$28>$M60,$C$28<=$N60),(($C$28-$M60)*E60)+I59,"Fora da faixa") -> Fora da faixa | M60: 15 | N60: 20
A61: =#REF!-#REF! ->  | B61: > 20 a 40 m³ | C61: 10.201 | D61: 7.548 | E61: 3.06 | F61: R$/m³ | G61: =G60+(C61*$A61) ->  | H61: =H60+(D61*$A61) ->  | I61: =I60+(E61*$A61) ->  | J61: =IF(AND($C$28>$M61,$C$28<=$N61),(($C$28-$M61)*C61)+G60,"Fora da faixa") -> Fora da faixa | K61: =IF(AND($C$28>$M61,$C$28<=$N61),(($C$28-$M61)*D61)+H60,"Fora da faixa") -> Fora da faixa | L61: =IF(AND($C$28>$M61,$C$28<=$N61),(($C$28-$M61)*E61)+I60,"Fora da faixa") -> Fora da faixa | M61: 20 | N61: 40
B62: > 40 m³ | C62: 12.446 | D62: 9.209 | E62: 3.735 | F62: R$/m³ | J62: =IF($C$28>$M62,(($C$28-$M62)*C62)+G61,"Fora da faixa") -> Fora da faixa | K62: =IF($C$28>$M62,(($C$28-$M62)*D62)+H61,"Fora da faixa") -> Fora da faixa | L62: =IF($C$28>$M62,(($C$28-$M62)*E62)+I61,"Fora da faixa") -> Fora da faixa | M62: 40
B63: Fixa | C63: 23.35 | D63: 17.28 | E63: 7.01 | F63: R$/mês | G63: =C63 -> 23.35 | H63: =D63 -> 17.28 | I63: =E63 -> 7.01
A64: =#REF!-#REF! ->  | B64: 0 a 3 m³ | C64: 2.85 | D64: 2.1 | E64: 0.85 | F64: R$/m³ | G64: =G63+(C64*$A64) ->  | H64: =H63+(D64*$A64) ->  | I64: =I63+(E64*$A64) ->  | J64: =IF($C$28<=$N64,(($C$28-$M64)*C64)+C$63,"Fora da faixa") -> 23.35 | K64: =IF($C$28<=$N64,(($C$28-$M64)*D64)+D$63,"Fora da faixa") -> 17.28 | L64: =IF($C$28<=$N64,(($C$28-$M64)*E64)+E$63,"Fora da faixa") -> 7.01 | M64: 0 | N64: 3
A65: =#REF!-#REF! ->  | B65: > 3 a 6 m³ | C65: 4.268 | D65: 3.158 | E65: 1.28 | F65: R$/m³ | G65: =G64+(C65*$A65) ->  | H65: =H64+(D65*$A65) ->  | I65: =I64+(E65*$A65) ->  | J65: =IF(AND($C$28>$M65,$C$28<=$N65),(($C$28-$M65)*C65)+G64,"Fora da faixa") -> Fora da faixa | K65: =IF(AND($C$28>$M65,$C$28<=$N65),(($C$28-$M65)*D65)+H64,"Fora da faixa") -> Fora da faixa | L65: =IF(AND($C$28>$M65,$C$28<=$N65),(($C$28-$M65)*E65)+I64,"Fora da faixa") -> Fora da faixa | M65: 3 | N65: 6
A66: =#REF!-#REF! ->  | B66: > 6 a 10 m³ | C66: 6.401 | D66: 4.737 | E66: 1.92 | F66: R$/m³ | G66: =G65+(C66*$A66) ->  | H66: =H65+(D66*$A66) ->  | I66: =I65+(E66*$A66) ->  | J66: =IF(AND($C$28>$M66,$C$28<=$N66),(($C$28-$M66)*C66)+G65,"Fora da faixa") -> Fora da faixa | K66: =IF(AND($C$28>$M66,$C$28<=$N66),(($C$28-$M66)*D66)+H65,"Fora da faixa") -> Fora da faixa | L66: =IF(AND($C$28>$M66,$C$28<=$N66),(($C$28-$M66)*E66)+I65,"Fora da faixa") -> Fora da faixa | M66: 6 | N66: 10
A67: =#REF!-#REF! ->  | B67: > 10 a 20 m³ | C67: 8.61 | D67: 6.371 | E67: 2.583 | F67: R$/m³ | G67: =G66+(C67*$A67) ->  | H67: =H66+(D67*$A67) ->  | I67: =I66+(E67*$A67) ->  | J67: =IF(AND($C$28>$M67,$C$28<=$N67),(($C$28-$M67)*C67)+G66,"Fora da faixa") -> Fora da faixa | K67: =IF(AND($C$28>$M67,$C$28<=$N67),(($C$28-$M67)*D67)+H66,"Fora da faixa") -> Fora da faixa | L67: =IF(AND($C$28>$M67,$C$28<=$N67),(($C$28-$M67)*E67)+I66,"Fora da faixa") -> Fora da faixa | M67: 10 | N67: S
A68: =#REF!-#REF! ->  | B68: > 20 a 40 m³ | C68: 10.848 | D68: 8.027 | E68: 3.255 | F68: R$/m³ | G68: =G67+(C68*$A68) ->  | H68: =H67+(D68*$A68) ->  | I68: =I67+(E68*$A68) ->  | J68: =IF(AND($C$28>$M68,$C$28<=$N68),(($C$28-$M68)*C68)+G67,"Fora da faixa") -> Fora da faixa | K68: =IF(AND($C$28>$M68,$C$28<=$N68),(($C$28-$M68)*D68)+H67,"Fora da faixa") -> Fora da faixa | L68: =IF(AND($C$28>$M68,$C$28<=$N68),(($C$28-$M68)*E68)+I67,"Fora da faixa") -> Fora da faixa | M68: 20 | N68: 40
A69: =#REF!-#REF! ->  | B69: > 40 a 200 m³ | C69: 13.149 | D69: 9.73 | E69: 3.945 | F69: R$/m³ | G69: =G68+(C69*$A69) ->  | H69: =H68+(D69*$A69) ->  | I69: =I68+(E69*$A69) ->  | J69: =IF(AND($C$28>$M69,$C$28<=$N69),(($C$28-$M69)*C69)+G68,"Fora da faixa") -> Fora da faixa | K69: =IF(AND($C$28>$M69,$C$28<=$N69),(($C$28-$M69)*D69)+H68,"Fora da faixa") -> Fora da faixa | L69: =IF(AND($C$28>$M69,$C$28<=$N69),(($C$28-$M69)*E69)+I68,"Fora da faixa") -> Fora da faixa | M69: 40 | N69: 200
B70: > 200 m³ | C70: 15.462 | D70: 11.442 | E70: 4.638 | F70: R$/m³ | J70: =IF($C$28>$M70,(($C$28-$M70)*C70)+G69,"Fora da faixa") -> Fora da faixa | K70: =IF($C$28>$M70,(($C$28-$M70)*D70)+H69,"Fora da faixa") -> Fora da faixa | L70: =IF($C$28>$M70,(($C$28-$M70)*E70)+I69,"Fora da faixa") -> Fora da faixa | M70: 200
B71: Fixa | C71: 23.35 | D71: 17.28 | E71: 7.01 | F71: R$/mês | G71: =C71 -> 23.35 | H71: =D71 -> 17.28 | I71: =E71 -> 7.01
A72: =#REF!-#REF! ->  | B72: 0 a 3 m³ | C72: 2.85 | D72: 2.1 | E72: 0.85 | F72: R$/m³ | G72: =G71+(C72*$A72) ->  | H72: =H71+(D72*$A72) ->  | I72: =I71+(E72*$A72) ->  | J72: =IF($C$28<=$N72,(($C$28-$M72)*C72)+C$71,"Fora da faixa") -> 23.35 | K72: =IF($C$28<=$N72,(($C$28-$M72)*D72)+D$71,"Fora da faixa") -> 17.28 | L72: =IF($C$28<=$N72,(($C$28-$M72)*E72)+E$71,"Fora da faixa") -> 7.01 | M72: 0 | N72: 3
A73: =#REF!-#REF! ->  | B73: > 3 a 6 m³ | C73: 4.268 | D73: 3.158 | E73: 1.28 | F73: R$/m³ | G73: =G72+(C73*$A73) ->  | H73: =H72+(D73*$A73) ->  | I73: =I72+(E73*$A73) ->  | J73: =IF(AND($C$28>$M73,$C$28<=$N73),(($C$28-$M73)*C73)+G72,"Fora da faixa") -> Fora da faixa | K73: =IF(AND($C$28>$M73,$C$28<=$N73),(($C$28-$M73)*D73)+H72,"Fora da faixa") -> Fora da faixa | L73: =IF(AND($C$28>$M73,$C$28<=$N73),(($C$28-$M73)*E73)+I72,"Fora da faixa") -> Fora da faixa | M73: 3 | N73: 6
A74: =#REF!-#REF! ->  | B74: > 6 a 10 m³ | C74: 6.401 | D74: 4.737 | E74: 1.92 | F74: R$/m³ | G74: =G73+(C74*$A74) ->  | H74: =H73+(D74*$A74) ->  | I74: =I73+(E74*$A74) ->  | J74: =IF(AND($C$28>$M74,$C$28<=$N74),(($C$28-$M74)*C74)+G73,"Fora da faixa") -> Fora da faixa | K74: =IF(AND($C$28>$M74,$C$28<=$N74),(($C$28-$M74)*D74)+H73,"Fora da faixa") -> Fora da faixa | L74: =IF(AND($C$28>$M74,$C$28<=$N74),(($C$28-$M74)*E74)+I73,"Fora da faixa") -> Fora da faixa | M74: 6 | N74: 10
A75: =#REF!-#REF! ->  | B75: > 10 a 20 m³ | C75: 8.61 | D75: 6.371 | E75: 2.583 | F75: R$/m³ | G75: =G74+(C75*$A75) ->  | H75: =H74+(D75*$A75) ->  | I75: =I74+(E75*$A75) ->  | J75: =IF(AND($C$28>$M75,$C$28<=$N75),(($C$28-$M75)*C75)+G74,"Fora da faixa") -> Fora da faixa | K75: =IF(AND($C$28>$M75,$C$28<=$N75),(($C$28-$M75)*D75)+H74,"Fora da faixa") -> Fora da faixa | L75: =IF(AND($C$28>$M75,$C$28<=$N75),(($C$28-$M75)*E75)+I74,"Fora da faixa") -> Fora da faixa | M75: 10 | N75: 20
A76: =#REF!-#REF! ->  | B76: > 20 a 40 m³ | C76: 10.848 | D76: 8.027 | E76: 3.255 | F76: R$/m³ | G76: =G75+(C76*$A76) ->  | H76: =H75+(D76*$A76) ->  | I76: =I75+(E76*$A76) ->  | J76: =IF(AND($C$28>$M76,$C$28<=$N76),(($C$28-$M76)*C76)+G75,"Fora da faixa") -> Fora da faixa | K76: =IF(AND($C$28>$M76,$C$28<=$N76),(($C$28-$M76)*D76)+H75,"Fora da faixa") -> Fora da faixa | L76: =IF(AND($C$28>$M76,$C$28<=$N76),(($C$28-$M76)*E76)+I75,"Fora da faixa") -> Fora da faixa | M76: 20 | N76: 40
A77: =#REF!-#REF! ->  | B77: > 40 a 200 m³ | C77: 13.149 | D77: 9.73 | E77: 3.945 | F77: R$/m³ | G77: =G76+(C77*$A77) ->  | H77: =H76+(D77*$A77) ->  | I77: =I76+(E77*$A77) ->  | J77: =IF(AND($C$28>$M77,$C$28<=$N77),(($C$28-$M77)*C77)+G76,"Fora da faixa") -> Fora da faixa | K77: =IF(AND($C$28>$M77,$C$28<=$N77),(($C$28-$M77)*D77)+H76,"Fora da faixa") -> Fora da faixa | L77: =IF(AND($C$28>$M77,$C$28<=$N77),(($C$28-$M77)*E77)+I76,"Fora da faixa") -> Fora da faixa | M77: 40 | N77: 200
B78: > 200 m³ | C78: 15.462 | D78: 11.442 | E78: 4.638 | F78: R$/m³ | J78: =IF($C$28>$M78,(($C$28-$M78)*C78)+G77,"Fora da faixa") -> Fora da faixa | K78: =IF(AND($C$28>$M78,$C$28<$N78),(($C$28-$M78)*D78)+H77,"Fora da faixa") -> Fora da faixa | L78: =IF(AND($C$28>$M78,$C$28<$N78),(($C$28-$M78)*E78)+I77,"Fora da faixa") -> Fora da faixa | M78: 200
B79: Fixa | C79: 19.85 | D79: 14.69 | E79: 5.96 | F79: R$/mês | G79: =C79 -> 19.85 | H79: =D79 -> 14.69 | I79: =E79 -> 5.96
A80: =#REF!-#REF! ->  | B80: 0 a 3 m³ | C80: 2.69 | D80: 1.99 | E80: 0.81 | F80: R$/m³ | G80: =G79+(C80*$A80) ->  | H80: =H79+(D80*$A80) ->  | I80: =I79+(E80*$A80) ->  | J80: =IF($C$28<=$N80,(($C$28-$M80)*C80)+C$79,"Fora da faixa") -> 19.85 | K80: =IF($C$28<=$N80,(($C$28-$M80)*D80)+D$79,"Fora da faixa") -> 14.69 | L80: =IF($C$28<=$N80,(($C$28-$M80)*E80)+E$79,"Fora da faixa") -> 5.96 | M80: 0 | N80: 3
A81: =#REF!-#REF! ->  | B81: > 3 a 6 m³ | C81: 4.043 | D81: 2.991 | E81: 1.213 | F81: R$/m³ | G81: =G80+(C81*$A81) ->  | H81: =H80+(D81*$A81) ->  | I81: =I80+(E81*$A81) ->  | J81: =IF(AND($C$28>$M81,$C$28<=$N81),(($C$28-$M81)*C81)+G80,"Fora da faixa") -> Fora da faixa | K81: =IF(AND($C$28>$M81,$C$28<=$N81),(($C$28-$M81)*D81)+H80,"Fora da faixa") -> Fora da faixa | L81: =IF(AND($C$28>$M81,$C$28<=$N81),(($C$28-$M81)*E81)+I80,"Fora da faixa") -> Fora da faixa | M81: 3 | N81: 6
A82: =#REF!-#REF! ->  | B82: > 6 a 10 m³ | C82: 6.064 | D82: 4.487 | E82: 1.82 | F82: R$/m³ | G82: =G81+(C82*$A82) ->  | H82: =H81+(D82*$A82) ->  | I82: =I81+(E82*$A82) ->  | J82: =IF(AND($C$28>$M82,$C$28<=$N82),(($C$28-$M82)*C82)+G81,"Fora da faixa") -> Fora da faixa | K82: =IF(AND($C$28>$M82,$C$28<=$N82),(($C$28-$M82)*D82)+H81,"Fora da faixa") -> Fora da faixa | L82: =IF(AND($C$28>$M82,$C$28<=$N82),(($C$28-$M82)*E82)+I81,"Fora da faixa") -> Fora da faixa | M82: 6 | N82: 10
A83: =#REF!-#REF! ->  | B83: > 10 a 20 m³ | C83: 8.157 | D83: 6.037 | E83: 2.447 | F83: R$/m³ | G83: =G82+(C83*$A83) ->  | H83: =H82+(D83*$A83) ->  | I83: =I82+(E83*$A83) ->  | J83: =IF(AND($C$28>$M83,$C$28<=$N83),(($C$28-$M83)*C83)+G82,"Fora da faixa") -> Fora da faixa | K83: =IF(AND($C$28>$M83,$C$28<=$N83),(($C$28-$M83)*D83)+H82,"Fora da faixa") -> Fora da faixa | L83: =IF(AND($C$28>$M83,$C$28<=$N83),(($C$28-$M83)*E83)+I82,"Fora da faixa") -> Fora da faixa | M83: 10 | N83: 20
A84: =#REF!-#REF! ->  | B84: > 20 a 40 m³ | C84: 10.277 | D84: 7.605 | E84: 3.083 | F84: R$/m³ | G84: =G83+(C84*$A84) ->  | H84: =H83+(D84*$A84) ->  | I84: =I83+(E84*$A84) ->  | J84: =IF(AND($C$28>$M84,$C$28<=$N84),(($C$28-$M84)*C84)+G83,"Fora da faixa") -> Fora da faixa | K84: =IF(AND($C$28>$M84,$C$28<=$N84),(($C$28-$M84)*D84)+H83,"Fora da faixa") -> Fora da faixa | L84: =IF(AND($C$28>$M84,$C$28<=$N84),(($C$28-$M84)*E84)+I83,"Fora da faixa") -> Fora da faixa | M84: 20 | N84: 40
A85: =#REF!-#REF! ->  | B85: > 40 a 200 m³ | C85: 12.456 | D85: 9.218 | E85: 3.737 | F85: R$/m³ | G85: =G84+(C85*$A85) ->  | H85: =H84+(D85*$A85) ->  | I85: =I84+(E85*$A85) ->  | J85: =IF(AND($C$28>$M85,$C$28<=$N85),(($C$28-$M85)*C85)+G84,"Fora da faixa") -> Fora da faixa | K85: =IF(AND($C$28>$M85,$C$28<=$N85),(($C$28-$M85)*D85)+H84,"Fora da faixa") -> Fora da faixa | L85: =IF(AND($C$28>$M85,$C$28<=$N85),(($C$28-$M85)*E85)+I84,"Fora da faixa") -> Fora da faixa | M85: 40 | N85: 200
B86: > 200 m³ | C86: 14.648 | D86: 10.84 | E86: 4.395 | F86: R$/m³ | J86: =IF($C$28>$M86,(($C$28-$M86)*C86)+G85,"Fora da faixa") -> Fora da faixa | K86: =IF($C$28>$M86,(($C$28-$M86)*D86)+H85,"Fora da faixa") -> Fora da faixa | L86: =IF($C$28>$M86,(($C$28-$M86)*E86)+I85,"Fora da faixa") -> Fora da faixa | M86: 200

Sheet Tutorial
AF5: Exemplo de uso do simulador

Sheet Tabela de Tarifas
B2: De Jan 24 até Dez 24 | D2: Tarifas | G2: Unidade
B3: Categorias | C3: Faixas | D3: Água | E3: ED | F3: EE
B4: Residencial Social | C4: Fixa | D4: 4.36 | E4: 3.24 | F4: 1.32 | G4: R$/mês
C5: 0 a 3 m³ | D5: 0.71 | E5: 0.53 | F5: 0.21 | G5: R$/m³
C6: > 3 a 6 m³ | D6: 0.888 | E6: 0.658 | F6: 0.267 | G6: R$/m³
C7: > 6 a 10 m³ | D7: 1.895 | E7: 1.402 | F7: 0.569 | G7: R$/m³
C8: > 10 a 15 m³ | D8: 2.938 | E8: 2.174 | F8: 0.882 | G8: R$/m³
C9: > 15 a 20 m³ | D9: 4.009 | E9: 2.967 | F9: 1.203 | G9: R$/m³
C10: > 20 a 40 m³ | D10: 10.201 | E10: 7.548 | F10: 3.06 | G10: R$/m³
C11: > 40 m³ | D11: 12.446 | E11: 9.209 | F11: 3.735 | G11: R$/m³
B12: Residencial | C12: Fixa | D12: 9.71 | E12: 7.18 | F12: 2.91 | G12: R$/mês
C13: 0 a 3 m³ | D13: 1.42 | E13: 1.05 | F13: 0.42 | G13: R$/m³
C14: > 3 a 6 m³ | D14: 1.778 | E14: 1.316 | F14: 0.533 | G14: R$/m³
C15: > 6 a 10 m³ | D15: 3.791 | E15: 2.806 | F15: 1.137 | G15: R$/m³
C16: > 10 a 15 m³ | D16: 5.875 | E16: 4.348 | F16: 1.763 | G16: R$/m³
C17: > 15 a 20 m³ | D17: 8.02 | E17: 5.934 | F17: 2.406 | G17: R$/m³
C18: > 20 a 40 m³ | D18: 10.201 | E18: 7.548 | F18: 3.06 | G18: R$/m³
C19: > 40 m³ | D19: 12.446 | E19: 9.209 | F19: 3.735 | G19: R$/m³
B20: Comercial | C20: Fixa | D20: 23.35 | E20: 17.28 | F20: 7.01 | G20: R$/mês
C21: 0 a 3 m³ | D21: 2.85 | E21: 2.1 | F21: 0.85 | G21: R$/m³
C22: > 3 a 6 m³ | D22: 4.268 | E22: 3.158 | F22: 1.28 | G22: R$/m³
C23: > 6 a 10 m³ | D23: 6.401 | E23: 4.737 | F23: 1.92 | G23: R$/m³
C24: > 10 a 20 m³ | D24: 8.61 | E24: 6.371 | F24: 2.583 | G24: R$/m³
C25: > 20 a 40 m³ | D25: 10.848 | E25: 8.027 | F25: 3.255 | G25: R$/m³
C26: > 40 a 200 m³ | D26: 13.149 | E26: 9.73 | F26: 3.945 | G26: R$/m³
C27: > 200 m³ | D27: 15.462 | E27: 11.442 | F27: 4.638 | G27: R$/m³
B28: Industrial | C28: Fixa | D28: 23.35 | E28: 17.28 | F28: 7.01 | G28: R$/mês
C29: 0 a 3 m³ | D29: 2.85 | E29: 2.1 | F29: 0.85 | G29: R$/m³
C30: > 3 a 6 m³ | D30: 4.268 | E30: 3.158 | F30: 1.28 | G30: R$/m³
C31: > 6 a 10 m³ | D31: 6.401 | E31: 4.737 | F31: 1.92 | G31: R$/m³
C32: > 10 a 20 m³ | D32: 8.61 | E32: 6.371 | F32: 2.583 | G32: R$/m³
C33: > 20 a 40 m³ | D33: 10.848 | E33: 8.027 | F33: 3.255 | G33: R$/m³
C34: > 40 a 200 m³ | D34: 13.149 | E34: 9.73 | F34: 3.945 | G34: R$/m³
C35: > 200 m³ | D35: 15.462 | E35: 11.442 | F35: 4.638 | G35: R$/m³
B36: Pública | C36: Fixa | D36: 19.85 | E36: 14.69 | F36: 5.96 | G36: R$/mês
C37: 0 a 3 m³ | D37: 2.69 | E37: 1.99 | F37: 0.81 | G37: R$/m³
C38: > 3 a 6 m³ | D38: 4.043 | E38: 2.991 | F38: 1.213 | G38: R$/m³
C39: > 6 a 10 m³ | D39: 6.064 | E39: 4.487 | F39: 1.82 | G39: R$/m³
C40: > 10 a 20 m³ | D40: 8.157 | E40: 6.037 | F40: 2.447 | G40: R$/m³
C41: > 20 a 40 m³ | D41: 10.277 | E41: 7.605 | F41: 3.083 | G41: R$/m³
C42: > 40 a 200 m³ | D42: 12.456 | E42: 9.218 | F42: 3.737 | G42: R$/m³
C43: > 200 m³ | D43: 14.648 | E43: 10.84 | F43: 4.395 | G43: R$/m³
